bitfinex-derivatives/quotes_ETHF0:USTF0_20210406
["timestamp","ask_amount","ask_price","bid_price","bid_amount"]
[1617722367151,2.0,2069.8,2068.0,3.0039]
[1617722367354,2.0,2069.8,2066.8,4.8908]
[1617722367355,30.0,2069.7,2066.8,4.8908]
[1617722367555,2.0,2069.6,2066.8,4.8908]
[1617722367752,30.0,2069.5,2066.8,4.8908]
[1617722368151,30.0,2069.5,2067.5,2.90695]
[1617722368352,30.0,2069.5,2067.5,4.74795]
[1617722368753,30.0,2069.5,2067.6,2.0]
[1617722369156,30.0,2069.6,2067.6,2.0]
[1617722369664,13.0518,2070.4,2067.6,32.0]
[1617722370158,13.0518,2070.4,2068.9,2.90695]
[1617722370355,0.9623,2071.9,2068.9,4.83775]
[1617722370356,30.0,2070.3,2068.9,4.83775]
[1617722371259,30.0,2070.6,2068.9,4.83775]
[1617722371680,2.0,2070.5,2068.9,2.90695]
[1617722371878,30.0,2070.4,2068.9,2.90695]
[1617722372170,2.90695,2069.0,2068.9,2.90695]
[1617722372966,5.48485,2069.0,2067.6,2.0]
[1617722373160,35.48485,2069.0,2066.9,2.0]
[1617722373361,35.48485,2069.0,2066.5,30.0]
[1617722373962,35.46485,2069.0,2066.5,30.0]
[1617722374162,35.46485,2069.0,2067.9,2.90695]
[1617722374163,2.90695,2068.0,2067.9,2.90695]
[1617722374364,2.5779,2069.0,2067.9,2.90695]
[1617722374763,30.0,2069.4,2067.9,2.90695]
[1617722375561,30.0,2069.8,2067.9,2.90695]
[1617722376062,30.0,2070.8,2068.7,2.90695]
[1617722376262,30.0,2070.8,2068.7,5.18915]
[1617722376465,30.0,2070.8,2068.7,6.16895]
[1617722376666,30.0,2070.6,2068.7,5.18915]
[1617722376866,2.0,2070.5,2068.7,5.18915]
[1617722377163,30.0,2070.4,2068.7,5.18915]
[1617722377564,30.0,2070.4,2068.8,2.0]
[1617722377765,2.0,2070.5,2068.8,2.0]
[1617722378264,2.0,2070.5,2069.0,2.90695]
[1617722379968,2.0,2070.6,2069.0,2.90695]
[1617722380167,2.0,2070.6,2069.7,2.90695]
[1617722382172,2.90695,2069.8,2069.7,2.90695]
[1617722384177,2.88695,2069.8,2069.7,2.90695]
[1617722384975,2.88695,2069.8,2069.7,3.86235]
[1617722386380,2.88695,2069.8,2069.7,2.90695]
[1617722387081,10.0,2071.1,2069.7,2.90695]
[1617722387287,10.0,2071.1,2069.7,5.60945]
[1617722388183,10.0,2071.1,2070.3,2.90695]
[1617722388383,10.0,2071.1,2070.3,4.79505]
[1617722390383,2.90695,2070.4,2070.3,4.79505]
[1617722392886,10.0,2071.1,2070.3,4.79505]
[1617722394387,10.0,2071.1,2070.8,2.90695]
[1617722394587,10.0,2071.1,2070.8,2.6273]
[1617722396189,2.90695,2070.9,2070.8,2.6273]
[1617722399995,2.90695,2070.9,2070.6,2.90695]
[1617722401993,2.90695,2070.9,2069.7,4.7025]
[1617722402193,2.90695,2070.9,2069.7,2.7025]
[1617722402393,2.1989,2070.9,2070.0,2.90695]
[1617722402793,2.1989,2070.9,2069.5,0.9557]
[1617722404396,2.1989,2070.9,2069.6,2.90695]
[1617722404596,42.0,2071.1,2069.6,2.90695]
[1617722404998,12.0,2071.1,2069.6,2.90695]
[1617722406400,2.90695,2069.7,2069.6,2.90695]
[1617722407601,10.0,2071.1,2069.6,2.90695]
[1617722408503,10.0,2071.1,2070.2,2.90695]
[1617722410506,2.90695,2070.3,2070.2,2.90695]
[1617722412208,10.0,2071.1,2070.2,2.90695]
[1617722412412,10.0,2071.1,2070.7,2.90695]
[1617722412612,10.0,2071.1,2070.7,5.71065]
[1617722414311,10.0,2071.1,2071.0,2.90695]
[1617722416411,12.90695,2071.1,2071.0,2.90695]
[1617722416611,12.90695,2071.1,2070.2,2.5423]
[1617722416913,12.90695,2071.1,2069.6,30.0]
[1617722417812,12.90695,2071.1,2069.5,0.9651]
[1617722418214,12.90695,2071.1,2068.4,32.0]
[1617722418415,10.0,2071.1,2070.3,2.90695]
[1617722418714,40.0,2071.1,2068.4,32.0]
[1617722420316,10.0,2071.1,2068.4,32.0]
[1617722420517,10.0,2071.1,2069.8,2.90695]
[1617722422519,10.0,2071.1,2070.1,2.90695]
[1617722424525,10.0,2071.1,2070.6,2.90695]
[1617722424724,10.0,2071.1,2070.6,4.75605]
[1617722425527,2.571,2072.0,2070.6,34.75605]
[1617722425731,7.669,2072.8,2070.6,34.75605]
[1617722425927,2.571,2072.8,2070.6,36.75605]
[1617722426530,2.571,2072.8,2071.8,2.90695]
[1617722426731,32.0,2073.2,2071.8,4.90795]
[1617722427135,32.0,2073.2,2071.8,2.001]
[1617722428440,2.90695,2071.9,2071.8,2.001]
[1617722429439,2.90695,2071.9,2071.6,2.90695]
[1617722429642,2.90695,2071.9,2070.7,0.9571]
[1617722430540,2.3324,2072.5,2071.3,2.90695]
[1617722431341,2.0,2072.5,2071.3,5.71775]
[1617722431542,30.0,2072.8,2071.3,5.71775]
[1617722431750,15.813,2072.9,2071.3,5.71775]
[1617722432545,15.813,2072.9,2071.6,2.90695]
[1617722433946,45.813,2072.9,2071.6,2.90695]
[1617722434148,45.813,2072.9,2070.7,0.9571]
[1617722434349,48.5298,2072.9,2070.7,0.9571]
[1617722434549,48.5298,2072.9,2070.8,2.90695]
[1617722434950,51.1008,2072.9,2069.8,2.0]
[1617722435150,51.1008,2072.9,2069.9,2.0]
[1617722436556,51.1008,2072.9,2070.3,2.90695]
[1617722438557,2.90695,2070.4,2070.3,2.90695]
[1617722438956,2.3712,2071.6,2070.3,2.90695]
[1617722440156,32.0,2072.7,2070.4,2.0]
[1617722440560,32.0,2072.7,2070.7,2.90695]
[1617722441660,32.0,2072.7,2070.7,3.85895]
[1617722442264,2.0,2072.5,2070.7,3.85895]
[1617722442464,30.0,2072.4,2070.7,2.90695]
[1617722442863,2.2233,2072.5,2070.7,2.90695]
[1617722443164,2.2233,2072.5,2070.7,32.90695]
[1617722443364,2.2233,2072.5,2070.7,35.86605]
[1617722443563,18.384,2072.9,2070.7,35.86605]
[1617722443968,15.813,2072.9,2070.7,35.86605]
[1617722444269,13.813,2072.9,2070.7,35.86605]
[1617722444677,13.813,2072.9,2071.7,2.90695]
[1617722444867,13.813,2072.9,2071.7,5.79645]
[1617722445670,2.0,2072.8,2071.7,5.79645]
[1617722446072,30.0,2072.7,2071.7,2.8895]
[1617722446273,32.0,2072.7,2070.7,0.9591]
[1617722446675,32.0,2072.7,2070.9,2.90695]
[1617722448474,32.0,2072.7,2069.8,32.0]
[1617722448676,2.90695,2070.4,2070.3,2.90695]
[1617722448977,5.10225,2070.4,2070.3,2.90695]
[1617722450475,5.10225,2070.4,2069.5,2.9717]
[1617722450675,5.10225,2070.4,2069.6,2.90695]
[1617722452178,5.10225,2070.4,2068.6,32.0]
[1617722452777,2.1953,2070.4,2069.3,2.90695]
[1617722452980,32.1953,2070.4,2068.6,2.0]
[1617722453187,32.1953,2070.4,2068.7,2.0]
[1617722453379,2.1953,2070.4,2068.7,2.0]
[1617722453979,30.0,2070.4,2068.3,0.9725]
[1617722454280,32.0026,2070.4,2068.1,30.0]
[1617722454677,32.0026,2070.4,2069.0,2.90695]
[1617722455083,2.0,2070.3,2069.0,2.90695]
[1617722455296,30.0,2070.2,2069.0,2.90695]
[1617722455478,2.0,2070.1,2069.0,2.90695]
[1617722456179,30.0,2070.0,2069.0,2.90695]
[1617722456679,2.90695,2069.1,2068.4,0.9692]
[1617722457079,3.88055,2069.1,2068.4,0.9692]
[1617722457280,2.90695,2069.1,2068.4,0.9692]
[1617722458280,2.90695,2069.1,2068.0,5.10479549]
[1617722458582,2.90695,2068.0,2067.9,8.01217962]
[1617722458781,5.61375,2068.0,2067.9,8.01217962]
[1617722458982,5.61375,2068.0,2067.9,2.90695]
[1617722461986,5.61375,2068.0,2067.0,0.9632]
[1617722462584,7.61375,2068.0,2066.8,5.10725159]
[1617722462787,7.61375,2068.0,2067.4,2.90695]
[1617722462788,4.7068,2068.0,2067.4,2.90695]
[1617722463486,2.7068,2068.0,2067.4,2.90695]
[1617722463888,30.0,2068.9,2067.4,2.90695]
[1617722464790,2.90695,2067.5,2067.4,2.90695]
[1617722465191,30.0,2068.9,2067.4,2.90695]
[1617722465490,12.6015,2069.0,2067.4,2.90695]
[1617722466090,42.6015,2069.0,2067.4,2.90695]
[1617722466691,42.6015,2069.0,2068.0,2.90695]
[1617722467094,2.0,2068.9,2067.0,0.9657]
[1617722467294,30.0,2068.8,2067.0,0.9657]
[1617722467794,30.0,2068.6,2066.3,30.0]
[1617722467994,32.0,2068.6,2066.3,30.0]
[1617722468196,32.0,2068.6,2066.4,2.0]
[1617722468795,2.90695,2067.5,2067.3,2.90695]
[1617722468997,2.90695,2067.5,2067.3,5.68515]
[1617722469799,12.6015,2069.0,2067.3,5.68515]
[1617722469996,30.0,2068.9,2067.3,5.68515]
[1617722470802,2.90695,2067.4,2067.3,5.68515]
[1617722471000,32.0,2068.9,2067.3,5.68515]
[1617722471601,30.0,2068.9,2067.3,5.68515]
[1617722471800,12.6015,2069.0,2067.3,5.68515]
[1617722472204,12.6015,2069.0,2067.3,35.68515]
[1617722472709,12.6015,2069.0,2067.4,2.0]
[1617722473004,32.0,2070.2,2068.6,2.90695]
[1617722473201,32.0,2070.2,2068.6,5.90875]
[1617722473902,30.0,2070.2,2068.6,5.90875]
[1617722474202,2.571,2071.0,2068.6,5.90875]
[1617722474203,30.0,2070.5,2068.6,5.90875]
[1617722474502,2.571,2071.0,2068.6,35.90875]
[1617722474803,2.571,2071.0,2069.4,2.90695]
[1617722475004,2.571,2071.0,2069.4,5.46925]
[1617722475205,32.0,2070.9,2069.4,5.46925]
[1617722476606,32.0,2070.9,2067.9,30.0]
[1617722476806,2.90695,2069.5,2068.5,2.90695]
[1617722477006,35.63395,2069.5,2068.5,2.90695]
[1617722477207,37.63395,2069.5,2067.4,2.0]
[1617722478007,37.63395,2069.5,2067.1,2.0]
[1617722478408,13.1024,2069.4,2067.0,0.9804]
[1617722478610,30.0,2069.3,2066.4,34.571]
[1617722478811,32.0,2069.3,2067.6,2.90695]
[1617722480510,30.0,2069.3,2067.6,2.90695]
[1617722480810,30.0,2069.3,2067.9,2.90695]
[1617722481611,15.1024,2069.4,2067.9,2.90695]
[1617722481813,13.1024,2069.4,2067.9,2.90695]
[1617722482418,30.0,2069.9,2067.9,2.90695]
[1617722482616,2.0,2070.0,2067.9,2.90695]
[1617722482818,2.0,2070.0,2068.8,2.90695]
[1617722483017,32.0,2070.0,2068.8,5.40265]
[1617722483718,2.0,2070.0,2068.8,5.40265]
[1617722484019,2.0,2070.4,2068.8,5.40265]
[1617722484221,32.0,2070.4,2068.8,5.40265]
[1617722484419,2.0,2070.4,2068.8,5.40265]
[1617722484823,15.0,2069.2,2069.1,2.90695]
[1617722486725,15.0,2069.2,2068.2,0.9655]
[1617722486925,17.1063,2069.2,2068.3,2.90695]
[1617722488826,17.1063,2069.2,2068.6,2.90695]
[1617722489026,15.0,2069.2,2068.6,2.90695]
[1617722490632,15.0,2069.2,2067.3,2.0]
[1617722490837,47.4222,2069.2,2067.9,2.90695]
[1617722491531,17.4222,2069.2,2067.9,2.90695]
[1617722492139,15.0,2069.2,2067.9,2.90695]
[1617722492838,15.0,2069.2,2068.6,2.90695]
[1617722493032,15.0,2069.2,2068.6,5.35885]
[1617722494833,15.0,2069.2,2069.1,2.90695]
[1617722495034,15.0,2069.2,2069.1,4.93715]
[1617722495237,15.0,2069.2,2069.1,34.93715]
[1617722495938,15.0,2069.2,2069.1,4.93715]
[1617722496542,15.0,2069.2,2069.1,2.90695]
[1617722496937,17.90695,2069.2,2069.1,2.90695]
[1617722498238,17.90695,2069.2,2066.0,7.518]
[1617722498239,17.90695,2069.2,2067.0,2.0]
[1617722498436,17.90695,2069.2,2067.1,30.9608]
[1617722498437,20.01325,2069.2,2067.1,30.9608]
[1617722498638,20.01325,2069.2,2067.2,2.0]
[1617722498837,20.01325,2069.2,2067.3,30.0]
[1617722499038,17.1063,2069.2,2068.2,2.90695]
[1617722499537,15.0,2069.2,2068.2,2.90695]
[1617722500140,15.0,2069.2,2068.2,5.74715]
[1617722500340,15.0,2069.2,2068.2,7.74715]
[1617722500540,15.0,2069.2,2068.2,37.74715]
[1617722501041,15.0,2069.2,2069.1,2.90695]
[1617722501240,15.0,2069.2,2069.1,5.32275]
[1617722501945,15.0,2069.2,2069.1,2.4158]
[1617722502445,15.0,2069.2,2067.8,30.0]
[1617722502646,17.1579,2069.2,2067.8,30.0]
[1617722503045,17.1579,2069.2,2068.6,2.90695]
[1617722504947,2.90695,2068.7,2068.6,2.90695]
[1617722509151,2.90695,2068.7,2068.3,0.9669]
[1617722510851,15.0,2069.2,2068.3,0.9669]
[1617722511152,15.0,2069.2,2068.7,2.90695]
[1617722513154,2.90695,2068.9,2068.7,2.90695]
[1617722518259,2.90695,2068.9,2068.3,0.9669]
[1617722519059,2.90695,2068.5,2068.4,2.90695]
[1617722519461,15.0,2069.2,2068.4,2.90695]
[1617722521163,2.90695,2068.5,2068.4,2.90695]
[1617722521363,5.24025,2068.5,2068.4,2.90695]
[1617722523764,5.24025,2068.5,2068.4,3.85925]
[1617722524762,2.90695,2068.5,2068.4,3.85925]
[1617722524963,15.0,2069.2,2068.4,3.85925]
[1617722525164,2.90695,2068.8,2068.4,6.40815]
[1617722527063,2.90695,2068.5,2068.4,6.40815]
[1617722527263,2.90695,2068.5,2068.4,3.85925]
[1617722528266,15.0,2069.2,2068.4,3.85925]
[1617722529165,2.90695,2068.6,2068.4,3.85925]
[1617722529465,15.0,2069.2,2068.4,3.85925]
[1617722530776,15.0,2069.2,2068.4,33.85925]
[1617722531177,15.0,2069.2,2069.1,2.90695]
[1617722531377,15.0,2069.2,2069.1,5.31715]
[1617722531574,14.05,2069.2,2069.1,5.31715]
[1617722532074,13.1,2069.2,2069.1,5.31715]
[1617722534173,13.1,2069.2,2069.1,35.31715]
[1617722534575,10.2184,2069.2,2069.1,35.31715]
[1617722534875,4.2155,2069.2,2069.1,35.31715]
[1617722535076,0.8538,2069.2,2069.1,37.31715]
[1617722535274,0.0001,2069.2,2069.1,37.31715]
[1617722535476,2.90695,2070.5,2069.1,37.31715]
[1617722536078,0.96,2071.9,2069.1,37.31715]
[1617722536277,2.0,2071.8,2069.1,37.31715]
[1617722537176,2.0,2071.8,2070.7,2.90695]
[1617722537376,2.0,2071.8,2070.7,5.00125]
[1617722537576,2.0,2071.8,2070.7,2.0943]
[1617722539182,2.90695,2071.2,2071.1,2.90695]
[1617722540481,2.90695,2071.2,2070.7,2.0943]
[1617722540883,2.90695,2071.2,2069.6,2.0]
[1617722541082,5.73685,2071.2,2069.6,2.0]
[1617722541284,2.8299,2071.2,2069.6,2.0]
[1617722542184,2.8299,2071.2,2069.7,32.0]
[1617722542387,2.0,2072.3,2069.7,34.3647]
[1617722543185,16.0771,2072.7,2071.1,2.90695]
[1617722543387,46.0771,2072.7,2071.1,4.74075]
[1617722543597,2.0,2072.6,2071.1,4.74075]
[1617722545288,2.90695,2071.2,2071.1,4.74075]
[1617722548189,2.571,2072.7,2071.1,4.74075]
[1617722549391,2.571,2072.7,2071.5,2.90695]
[1617722549890,2.0,2073.2,2071.5,2.90695]
[1617722550091,43.0959,2073.5,2071.5,2.90695]
[1617722550092,2.0,2073.4,2071.5,2.90695]
[1617722550389,2.0,2073.1,2071.5,2.90695]
[1617722550790,32.0,2073.1,2071.5,2.90695]
[1617722550994,33.8679,2073.1,2070.8,0.9577]
[1617722551191,33.8679,2073.1,2069.7,34.3647]
[1617722551492,2.90695,2071.1,2071.0,2.90695]
[1617722551793,2.90695,2071.1,2069.9,2.0]
[1617722551992,2.90695,2071.1,2070.0,30.0]
[1617722552194,2.90695,2071.1,2070.1,2.0]
[1617722552494,2.90695,2071.1,2070.2,30.0]
[1617722552691,2.90695,2071.1,2070.3,2.0]
[1617722552893,33.8679,2073.1,2070.4,30.0]
[1617722553192,33.8679,2073.1,2070.4,31.9616]
[1617722553392,3.8679,2073.1,2071.6,2.90695]
[1617722553593,0.01406881,2073.3,2071.6,2.90695]
[1617722554093,30.0140706,2073.4,2071.6,2.90695]
[1617722554393,30.0,2073.4,2071.6,2.90695]
[1617722555393,30.0,2073.4,2071.9,2.90695]
[1617722555593,2.0,2073.3,2071.9,2.90695]
[1617722555993,30.0,2073.2,2071.5,2.4038]
[1617722556195,32.0,2073.2,2071.5,2.4038]
[1617722556593,32.0,2073.2,2070.7,0.9748]
[1617722556793,33.9105,2073.2,2070.7,0.9748]
[1617722556993,33.9105,2073.2,2070.7,2.9748]
[1617722557294,33.9105,2073.2,2071.2,2.90695]
[1617722558293,33.9105,2073.2,2070.0,30.0]
[1617722559197,33.9105,2073.2,2070.1,2.0]
[1617722559495,33.9105,2073.2,2070.4,2.90695]
[1617722561401,2.90695,2070.5,2070.4,2.90695]
[1617722561700,33.9105,2073.2,2070.4,32.90695]
[1617722562000,2.0,2073.2,2070.4,34.90695]
[1617722562201,32.0,2073.2,2070.4,34.90695]
[1617722563402,32.0,2073.2,2071.4,2.90695]
[1617722563603,32.0,2073.2,2071.4,5.75815]
[1617722565205,2.0,2073.2,2071.4,5.75815]
[1617722565506,2.0,2073.2,2071.8,2.90695]
[1617722566204,30.0,2073.4,2071.8,2.90695]
[1617722567106,32.0,2073.4,2071.8,2.90695]
[1617722567410,13.0959,2073.5,2072.2,2.90695]
[1617722567607,13.0959,2073.5,2072.2,5.22405]
[1617722567807,2.0,2073.8,2072.2,5.22405]
[1617722568009,2.571,2074.4,2072.2,5.22405]
[1617722568207,2.571,2074.4,2072.2,35.22405]
[1617722568408,2.571,2074.4,2072.3,2.0]
[1617722568608,2.0,2074.3,2072.3,2.0]
[1617722568912,2.0,2074.3,2072.3,32.0]
[1617722569412,2.0,2074.3,2073.2,2.90695]
[1617722569610,2.0,2074.3,2073.2,4.74795]
[1617722571415,2.90695,2073.3,2073.2,4.74795]
[1617722578224,2.90695,2073.3,2073.2,1.841]
[1617722578426,2.90695,2073.3,2072.2,2.3171]
[1617722578725,2.90695,2073.3,2072.1,0.9646]
[1617722579524,32.0,2074.3,2073.0,2.90695]
[1617722579926,32.0,2074.3,2072.2,2.1474]
[1617722580725,32.0,2074.3,2072.1,0.9646]
[1617722581224,32.0,2074.3,2071.4,2.0]
[1617722581426,32.9647,2074.3,2071.0,32.9723]
[1617722581628,32.9647,2074.3,2071.5,2.90695]
[1617722582128,32.9647,2074.3,2071.0,0.9723]
[1617722582527,32.0,2074.1,2071.0,0.9723]
[1617722583531,32.0,2074.1,2071.7,2.90695]
[1617722583932,32.0,2074.1,2071.0,0.9723]
[1617722584335,13.6324,2074.0,2070.4,2.0]
[1617722584531,13.6324,2074.0,2069.8,30.0]
[1617722584532,32.0,2073.9,2069.8,30.0]
[1617722584732,34.4007,2073.9,2069.8,30.0]
[1617722585333,34.4007,2073.9,2069.9,32.0]
[1617722585532,34.4007,2073.9,2071.1,2.90695]
[1617722586335,34.4007,2073.9,2069.9,32.0]
[1617722587434,34.4007,2073.9,2069.9,30.0]
[1617722587635,2.90695,2070.6,2070.0,2.90695]
[1617722588335,2.90695,2070.6,2070.1,2.0]
[1617722589636,2.90695,2070.6,2070.5,2.90695]
[1617722592140,2.90695,2070.6,2069.1,32.0]
[1617722592341,5.65155,2070.6,2069.1,32.0]
[1617722593542,2.7446,2070.6,2070.3,2.90695]
[1617722593751,32.0,2072.8,2070.3,2.90695]
[1617722594844,32.0,2072.8,2070.4,2.0]
[1617722595146,32.0,2072.8,2070.4,32.0]
[1617722595543,32.0,2072.8,2071.5,2.90695]
[1617722595744,32.0,2072.8,2071.5,5.89285]
[1617722597547,2.90695,2071.6,2071.5,5.89285]
[1617722598147,10.0,2073.2,2071.5,5.89285]
[1617722598355,10.0,2073.2,2071.5,7.89285]
[1617722598748,10.0,2073.2,2071.5,37.89285]
[1617722599550,10.0,2073.2,2072.4,2.90695]
[1617722599847,10.0,2073.2,2072.4,5.52335]
[1617722601547,2.90695,2072.5,2072.4,5.52335]
[1617722604750,10.0,2073.2,2072.4,5.52335]
[1617722604948,10.0,2073.2,2072.5,2.0]
[1617722605151,10.0,2073.2,2072.4,5.52335]
[1617722605750,10.0,2073.2,2072.9,2.90695]
[1617722605950,10.0,2073.2,2072.9,5.43725]
[1617722606551,10.0,2073.2,2072.9,2.5303]
[1617722607656,2.90695,2073.0,2072.9,2.5303]
[1617722611257,2.90695,2073.0,2072.7,2.90695]
[1617722612561,10.0,2073.2,2072.7,2.90695]
[1617722613662,10.0,2073.2,2073.1,2.90695]
[1617722613862,10.0,2073.2,2073.1,5.62545]
[1617722615663,12.90695,2073.2,2073.1,5.62545]
[1617722619765,11.94615,2073.2,2073.1,5.62545]
[1617722620466,11.94615,2073.2,2073.1,2.90695]
[1617722621067,11.94615,2073.2,2072.9,1.0]
[1617722623869,11.94615,2073.2,2073.1,2.90695]
[1617722625673,11.94615,2073.2,2073.0,2.6531]
[1617722625872,11.94615,2073.2,2073.1,2.90695]
[1617722627374,11.94615,2073.2,2072.9,1.0]
[1617722644095,14.08695,2073.2,2072.9,1.0]
[1617722647996,14.08695,2073.2,2072.9,3.90695]
[1617722648596,11.94615,2073.2,2072.9,3.90695]
[1617722651602,14.86395,2073.2,2072.9,3.90695]
[1617722653002,9.86395,2073.2,2072.9,3.90695]
[1617722653406,6.94615,2073.2,2072.9,3.90695]
[1617722654207,6.94615,2073.2,2072.9,6.66805]
[1617722656508,4.0392,2073.2,2072.9,6.66805]
[1617722656708,2.6038,2073.2,2072.9,6.66805]
[1617722657112,2.6038,2073.2,2072.9,8.66805]
[1617722658510,1.8758,2073.2,2072.9,8.66805]
[1617722658708,0.7175,2073.2,2072.9,8.66805]
[1617722661922,0.0001,2073.2,2072.9,8.66805]
[1617722663222,0.0001,2073.2,2072.9,38.66805]
[1617722672738,0.01401335,2075.3,2072.9,38.66805]
[1617722674138,0.01401335,2075.3,2074.5,3.86685]
[1617722674338,0.01401335,2075.3,2074.5,6.71415]
[1617722675341,0.01401335,2075.3,2074.5,5.75425]
[1617722676142,2.90695,2074.6,2074.5,5.75425]
[1617722676542,1.69565,2074.6,2074.5,5.75425]
[1617722678846,1.69565,2074.6,2074.5,6.71715]
[1617722679245,0.73245,2074.6,2074.5,5.75425]
[1617722680246,0.73245,2074.6,2074.5,6.71735]
[1617722680646,0.01401335,2075.3,2074.5,6.71735]
[1617722681247,0.01401335,2075.3,2074.5,5.75425]
[1617722681447,30.0,2075.9,2074.5,5.75425]
[1617722681649,2.0,2075.8,2074.5,5.75425]
[1617722682048,2.0,2075.8,2075.0,2.90695]
[1617722682551,32.0,2075.8,2075.0,2.90695]
[1617722683251,30.0,2075.8,2075.0,2.90695]
[1617722684151,2.90695,2075.1,2075.0,2.90695]
[1617722685852,2.0,2076.1,2075.0,2.90695]
[1617722686054,30.0,2076.0,2075.0,2.90695]
[1617722686252,30.0,2076.0,2075.5,2.90695]
[1617722686451,30.0,2076.0,2075.5,4.88375]
[1617722686652,2.0,2075.9,2075.5,4.88375]
[1617722687856,30.0,2075.8,2075.5,4.88375]
[1617722688256,32.90695,2075.6,2075.5,1.9768]
[1617722688557,32.90695,2075.6,2074.0,2.6786]
[1617722688759,32.90695,2075.6,2073.3,32.0]
[1617722688959,30.0,2075.4,2073.3,32.0]
[1617722689160,2.0,2075.3,2073.3,32.0]
[1617722689561,30.0,2075.2,2073.3,32.0]
[1617722690164,32.0,2075.2,2074.6,2.90695]
[1617722692269,2.90695,2074.7,2074.6,2.90695]
[1617722711392,13.0,2075.1,2074.6,2.90695]
[1617722711593,13.0,2075.1,2074.6,5.53825]
[1617722712393,13.0,2075.1,2075.0,2.90695]
[1617722715397,12.9443,2075.1,2075.0,2.90695]
[1617722717197,12.7862,2075.1,2075.0,2.90695]
[1617722723101,12.6862,2075.1,2075.0,2.90695]
[1617722723802,14.6985,2075.1,2073.6,32.0]
[1617722724005,14.6985,2075.1,2073.2,0.9738]
[1617722724503,16.6985,2075.1,2074.7,2.90695]
[1617722725403,14.6985,2075.1,2073.2,0.9738]
[1617722726508,2.90695,2074.9,2074.7,2.90695]
[1617722726706,2.90695,2074.9,2074.7,3.87515]
[1617722727407,2.90695,2074.9,2074.7,2.90695]
[1617722728950,12.6862,2075.1,2074.7,2.90695]
[1617722729134,12.6862,2075.1,2074.7,5.82755]
[1617722729810,10.06,2075.1,2074.7,5.82755]
[1617722730611,10.06,2075.1,2075.0,2.90695]
[1617722731013,8.6166,2075.1,2075.0,2.90695]
[1617722731615,8.1325,2075.1,2075.0,2.90695]
[1617722732313,6.5944,2075.1,2075.0,2.90695]
[1617722732514,5.6298,2075.1,2075.0,2.90695]
[1617722733015,2.0,2077.6,2075.0,34.90695]
[1617722733214,14.6622,2077.6,2075.0,34.90695]
[1617722733515,30.0,2077.5,2075.0,34.90695]
[1617722733716,2.0,2077.4,2075.0,34.90695]
[1617722734016,32.0,2077.4,2075.0,34.90695]
[1617722734615,32.0,2077.4,2076.5,2.90695]
[1617722734815,32.0,2077.4,2076.5,5.19455]
[1617722736619,2.90695,2076.6,2076.5,5.19455]
[1617722739522,2.90695,2076.6,2076.5,2.90695]
[1617722739920,2.90695,2076.6,2074.8,32.0]
[1617722740120,32.90695,2076.6,2074.8,30.0]
[1617722740323,2.0,2076.5,2074.8,30.0]
[1617722740621,2.0,2076.5,2073.8,5.03673053]
[1617722740622,34.4278,2076.5,2075.7,2.90695]
[1617722741425,34.4278,2076.5,2075.0,1.0]
[1617722742727,34.4278,2076.5,2075.1,2.90695]
[1617722743126,34.4278,2076.5,2075.0,1.0]
[1617722743728,34.44195186,2076.5,2075.0,1.0]
[1617722744128,0.0141526,2076.3,2073.2,0.9738]
[1617722744327,0.0141526,2076.3,2072.8,5.0681802]
[1617722744528,0.01415402,2076.2,2072.7,5.0706407]
[1617722744829,0.01415402,2076.2,2073.5,2.90695]
[1617722745229,32.01415307,2076.3,2073.5,4.78235]
[1617722745729,32.0,2076.3,2073.5,6.78235]
[1617722746729,32.0,2076.3,2074.5,2.90695]
[1617722747331,32.0,2076.3,2073.2,6.02184846]
[1617722747628,34.2067,2076.3,2073.2,6.02184846]
[1617722747829,34.2067,2076.3,2071.1,2.9968]
[1617722747830,34.22085293,2076.3,2072.8,5.06940711]
[1617722748129,0.01415337,2076.2,2072.7,5.06970838]
[1617722748529,34.22085353,2076.3,2072.8,5.06964227]
[1617722748729,34.22085353,2076.3,2073.5,2.90695]
[1617722748931,0.01415387,2076.1,2073.5,2.90695]
[1617722749147,0.01415387,2076.1,2072.6,5.07195784]
[1617722749732,0.01415487,2075.9,2072.4,5.07477784]
[1617722750232,0.01415547,2075.8,2072.3,5.07591709]
[1617722750432,32.0141555,2075.7,2072.3,5.07591709]
[1617722750844,32.90695,2073.0,2072.2,5.07547507]
[1617722751036,35.78835,2073.0,2072.2,5.07547507]
[1617722751236,35.78835,2073.0,2072.1,5.07795491]
[1617722751648,35.78835,2073.0,2071.7,5.08454449]
[1617722751834,37.78835,2073.0,2071.7,5.08454449]
[1617722752034,37.78835,2073.0,2070.8,2.0]
[1617722752035,35.78835,2073.0,2071.6,5.0870637]
[1617722752234,35.78835,2073.0,2072.0,0.9569]
[1617722752235,2.90695,2073.0,2072.0,0.9569]